[Event "Titled Tuesday Blitz January 03 Early 2023"]
[White "Abasov, Nijat"]
[Black "Ginzburg, Yakov"]
[WhiteFideId "13402960"]
[BlackFideId "4157176"]
[WhiteElo "2634"]
[BlackElo "2405"]
[Result "1-0"]
[Round "02"]
[TimeControl "180+2"]
[Date "2023.01.03"]
[WhiteClock "0:00:21"]
[BlackClock "0:00:28"]

1. d4 {[%clk 0:02:50]}  d5 {[%clk 0:02:59]} 2. Nf3 {[%clk 0:02:51]}  Nf6 {[%clk 0:02:58]} 3. Bf4 {[%clk 0:02:51]}  c5 {[%clk 0:02:54]} 4. e3 {[%clk 0:02:51]}  Qb6 {[%clk 0:02:53]} 5. c4 {[%clk 0:02:45]}  Qxb2 {[%clk 0:02:38]} 6. Nbd2 {[%clk 0:02:35]}  Bf5 {[%clk 0:02:30]} 7. dxc5 {[%clk 0:02:20]}  e6 {[%clk 0:02:24]} 8. Nd4 {[%clk 0:02:10]}  Bg6 {[%clk 0:02:08]} 9. cxd5 {[%clk 0:01:44]}  Bxc5 {[%clk 0:02:07]} 10. Rc1 {[%clk 0:01:26]}  Bxd4 {[%clk 0:01:30]} 11. Rc8+ {[%clk 0:01:22]}  Kd7 {[%clk 0:01:29]} 12. Rxh8 {[%clk 0:01:17]}  Bc2 {[%clk 0:01:29]} 13. Bb5+ {[%clk 0:00:47]}  Nc6 {[%clk 0:01:28]} 14. dxc6+ {[%clk 0:00:45]}  bxc6 {[%clk 0:01:28]} 15. Nc4 {[%clk 0:00:31]}  Bxd1 {[%clk 0:00:31]} 16. Nxb2 {[%clk 0:00:28]}  Rxh8 {[%clk 0:00:31]} 17. exd4 {[%clk 0:00:24]}  cxb5 {[%clk 0:00:29]} 18. Kxd1 {[%clk 0:00:23]}  Nd5 {[%clk 0:00:29]} 19. Bd2 {[%clk 0:00:21]}  Rc8 {[%clk 0:00:29]} 20. Nd3 {[%clk 0:00:21]}  Rc4 {[%clk 0:00:28]} 21. Ne5+ {[%clk 0:00:21]} 1-0


[Site "https://www.chess.com"]

[Event "Titled Tuesday Blitz January 03 Early 2023"]
[White "De La Colina, Nicolas"]
[Black "Eljanov, Pavel"]
[WhiteFideId "30946921"]
[BlackFideId "14102951"]
[WhiteElo "2244"]
[BlackElo "2705"]
[Result "0-1"]
[Round "02"]
[TimeControl "180+2"]
[Date "2023.01.03"]
[WhiteClock "0:01:26"]
[BlackClock "0:02:22"]

1. e4 {[%clk 0:03:00]}  c6 {[%clk 0:02:59]} 2. d4 {[%clk 0:02:56]}  d5 {[%clk 0:03:00]} 3. exd5 {[%clk 0:02:57]}  cxd5 {[%clk 0:03:00]} 4. Bd3 {[%clk 0:02:57]}  Nf6 {[%clk 0:03:00]} 5. c3 {[%clk 0:02:58]}  Bg4 {[%clk 0:03:00]} 6. Qb3 {[%clk 0:02:57]}  Qc7 {[%clk 0:03:00]} 7. h3 {[%clk 0:02:56]}  Bd7 {[%clk 0:03:00]} 8. Nf3 {[%clk 0:02:51]}  e6 {[%clk 0:03:00]} 9. O-O {[%clk 0:02:44]}  Bd6 {[%clk 0:02:59]} 10. Re1 {[%clk 0:02:44]}  Bc6 {[%clk 0:03:00]} 11. Na3 {[%clk 0:02:41]}  a6 {[%clk 0:02:54]} 12. Nc2 {[%clk 0:02:41]}  Nbd7 {[%clk 0:02:53]} 13. Bg5 {[%clk 0:02:14]}  Ne4 {[%clk 0:02:42]} 14. Be3 {[%clk 0:02:10]}  O-O {[%clk 0:02:38]} 15. c4 {[%clk 0:02:05]}  dxc4 {[%clk 0:02:31]} 16. Qxc4 {[%clk 0:02:06]}  Nb6 {[%clk 0:02:23]} 17. Qb3 {[%clk 0:01:26]}  Bd5 {[%clk 0:02:22]} 0-1


[Site "https://www.chess.com"]

[Event "Titled Tuesday Blitz January 03 Early 2023"]
[White "Karttunen, Mika"]
[Black "Molina, Roberto Junio Brito"]
[WhiteFideId "502081"]
[BlackFideId "2109450"]
[WhiteElo "2490"]
[BlackElo "2403"]
[Result "0-1"]
[Round "02"]
[TimeControl "180+2"]
[Date "2023.01.03"]
[WhiteClock "0:00:11"]
[BlackClock "0:01:01"]

1. e4 {[%clk 0:03:00]}  c6 {[%clk 0:02:57]} 2. d4 {[%clk 0:03:00]}  d5 {[%clk 0:02:58]} 3. e5 {[%clk 0:02:56]}  Bf5 {[%clk 0:02:57]} 4. h4 {[%clk 0:02:57]}  Qb6 {[%clk 0:02:56]} 5. Nc3 {[%clk 0:02:53]}  h6 {[%clk 0:02:54]} 6. a4 {[%clk 0:02:38]}  e6 {[%clk 0:02:53]} 7. a5 {[%clk 0:02:38]}  Qc7 {[%clk 0:02:52]} 8. Bd2 {[%clk 0:02:29]}  a6 {[%clk 0:02:52]} 9. Na4 {[%clk 0:02:28]}  Nd7 {[%clk 0:02:52]} 10. b4 {[%clk 0:02:27]}  Ne7 {[%clk 0:02:49]} 11. g4 {[%clk 0:02:26]}  Be4 {[%clk 0:02:49]} 12. f3 {[%clk 0:02:26]}  Bh7 {[%clk 0:02:48]} 13. h5 {[%clk 0:01:58]}  f6 {[%clk 0:02:44]} 14. f4 {[%clk 0:01:56]}  O-O-O {[%clk 0:02:37]} 15. Nf3 {[%clk 0:01:51]}  Kb8 {[%clk 0:02:35]} 16. Bd3 {[%clk 0:01:47]}  Be4 {[%clk 0:02:30]} 17. Qe2 {[%clk 0:01:39]}  f5 {[%clk 0:02:28]} 18. g5 {[%clk 0:01:35]}  g6 {[%clk 0:02:23]} 19. hxg6 {[%clk 0:01:20]}  Nxg6 {[%clk 0:02:21]} 20. O-O-O {[%clk 0:01:14]}  hxg5 {[%clk 0:01:58]} 21. Rxh8 {[%clk 0:01:13]}  Bxf3 {[%clk 0:01:56]} 22. Qxf3 {[%clk 0:01:12]}  Nxh8 {[%clk 0:01:56]} 23. fxg5 {[%clk 0:01:11]}  Bg7 {[%clk 0:01:47]} 24. Rh1 {[%clk 0:01:02]}  Rg8 {[%clk 0:01:45]} 25. Kb1 {[%clk 0:01:01]}  Ng6 {[%clk 0:01:43]} 26. Rh7 {[%clk 0:00:48]}  Ndf8 {[%clk 0:01:41]} 27. Rh1 {[%clk 0:00:45]}  Nd7 {[%clk 0:01:41]} 28. Rh7 {[%clk 0:00:45]}  Ka7 {[%clk 0:01:37]} 29. Ka2 {[%clk 0:00:36]}  Qd8 {[%clk 0:01:33]} 30. Kb3 {[%clk 0:00:33]}  Ndf8 {[%clk 0:01:31]} 31. Rh5 {[%clk 0:00:33]}  Qe7 {[%clk 0:01:30]} 32. Nc5 {[%clk 0:00:31]}  Nd7 {[%clk 0:01:31]} 33. Nxd7 {[%clk 0:00:28]}  Qxd7 {[%clk 0:01:31]} 34. Rh7 {[%clk 0:00:27]}  Nf8 {[%clk 0:01:25]} 35. Rh5 {[%clk 0:00:26]}  Qf7 {[%clk 0:01:25]} 36. Be3 {[%clk 0:00:25]}  Qg6 {[%clk 0:01:21]} 37. Qh3 {[%clk 0:00:24]}  Kb8 {[%clk 0:01:20]} 38. c3 {[%clk 0:00:24]}  Kc7 {[%clk 0:01:20]} 39. Bf4 {[%clk 0:00:24]}  Kd7 {[%clk 0:01:21]} 40. Qh4 {[%clk 0:00:25]}  Qf7 {[%clk 0:01:21]} 41. Qf2 {[%clk 0:00:23]}  Ng6 {[%clk 0:01:21]} 42. Rh1 {[%clk 0:00:21]}  Bf8 {[%clk 0:01:21]} 43. Be2 {[%clk 0:00:20]}  Rh8 {[%clk 0:01:19]} 44. Bh5 {[%clk 0:00:18]}  Qg7 {[%clk 0:01:11]} 45. Bd2 {[%clk 0:00:16]}  Ne7 {[%clk 0:01:11]} 46. Bf3 {[%clk 0:00:15]}  Rh7 {[%clk 0:01:09]} 47. Rh2 {[%clk 0:00:15]}  Qh8 {[%clk 0:01:09]} 48. Rxh7 {[%clk 0:00:14]}  Qxh7 {[%clk 0:01:10]} 49. Qg3 {[%clk 0:00:14]}  Ng6 {[%clk 0:01:10]} 50. Kc2 {[%clk 0:00:14]}  Be7 {[%clk 0:01:10]} 51. Kb2 {[%clk 0:00:14]}  Ke8 {[%clk 0:01:10]} 52. Be2 {[%clk 0:00:14]}  Kf7 {[%clk 0:01:11]} 53. Bf3 {[%clk 0:00:15]}  Kg7 {[%clk 0:01:12]} 54. Qg2 {[%clk 0:00:15]}  Nh4 {[%clk 0:01:10]} 55. Qg3 {[%clk 0:00:14]}  Nxf3 {[%clk 0:01:10]} 56. Qxf3 {[%clk 0:00:14]}  Kg6 {[%clk 0:01:10]} 57. Qg2 {[%clk 0:00:13]}  Qh4 {[%clk 0:01:10]} 58. Qf3 {[%clk 0:00:12]}  Qh2 {[%clk 0:01:05]} 59. Kc1 {[%clk 0:00:12]}  Qg1+ {[%clk 0:01:04]} 60. Kc2 {[%clk 0:00:12]}  Qg4 {[%clk 0:01:02]} 61. Qf1 {[%clk 0:00:12]}  Bxg5 {[%clk 0:01:01]} 62. Bxg5 {[%clk 0:00:12]}  Kxg5 {[%clk 0:01:02]} 63. Kb3 {[%clk 0:00:11]}  f4 {[%clk 0:01:01]} 64. Qd3 {[%clk 0:00:12]}  f3 {[%clk 0:01:01]} 65. Qh7 {[%clk 0:00:12]}  Kf4 {[%clk 0:01:01]} 66. Qh6+ {[%clk 0:00:11]}  Kg3 {[%clk 0:01:01]} 0-1


[Site "https://www.chess.com"]

[Event "Titled Tuesday Blitz January 03 Early 2023"]
[White "Grigoriants, Sergey"]
[Black "Suleymanli, Suleyman"]
[WhiteFideId "4130804"]
[BlackFideId "13416375"]
[WhiteElo "2562"]
[BlackElo "2269"]
[Result "0-1"]
[Round "02"]
[TimeControl "180+2"]
[Date "2023.01.03"]
[WhiteClock "0:00:07"]
[BlackClock "0:01:15"]

1. d4 {[%clk 0:02:57]}  d5 {[%clk 0:02:59]} 2. c4 {[%clk 0:02:57]}  dxc4 {[%clk 0:03:00]} 3. e3 {[%clk 0:02:56]}  Nf6 {[%clk 0:03:00]} 4. Bxc4 {[%clk 0:02:56]}  e6 {[%clk 0:03:01]} 5. Nf3 {[%clk 0:02:57]}  c5 {[%clk 0:03:01]} 6. O-O {[%clk 0:02:57]}  a6 {[%clk 0:03:02]} 7. Bb3 {[%clk 0:02:57]}  b5 {[%clk 0:03:01]} 8. a4 {[%clk 0:02:53]}  b4 {[%clk 0:02:59]} 9. dxc5 {[%clk 0:02:45]}  Qxd1 {[%clk 0:02:52]} 10. Bxd1 {[%clk 0:02:40]}  Bxc5 {[%clk 0:02:52]} 11. Nfd2 {[%clk 0:02:39]}  Bb7 {[%clk 0:02:52]} 12. Nb3 {[%clk 0:02:39]}  Nbd7 {[%clk 0:02:49]} 13. N1d2 {[%clk 0:02:37]}  Bd5 {[%clk 0:02:47]} 14. Bf3 {[%clk 0:02:35]}  O-O {[%clk 0:02:46]} 15. e4 {[%clk 0:02:13]}  Bb7 {[%clk 0:02:41]} 16. Na5 {[%clk 0:02:11]}  Rab8 {[%clk 0:02:28]} 17. Nxb7 {[%clk 0:02:04]}  Rxb7 {[%clk 0:02:29]} 18. e5 {[%clk 0:02:01]}  Nd5 {[%clk 0:02:29]} 19. Nc4 {[%clk 0:01:59]}  Rc7 {[%clk 0:02:29]} 20. Be2 {[%clk 0:01:36]}  Bd4 {[%clk 0:02:24]} 21. Rd1 {[%clk 0:01:35]}  Ba7 {[%clk 0:02:15]} 22. Bd2 {[%clk 0:01:28]}  Rfc8 {[%clk 0:02:15]} 23. Nd6 {[%clk 0:01:25]}  Rd8 {[%clk 0:02:08]} 24. Bxa6 {[%clk 0:01:24]}  Nxe5 {[%clk 0:02:07]} 25. Nb5 {[%clk 0:01:24]}  Rcd7 {[%clk 0:02:05]} 26. Nxa7 {[%clk 0:01:22]}  Rxa7 {[%clk 0:02:06]} 27. Bb5 {[%clk 0:01:20]}  Rb8 {[%clk 0:01:57]} 28. Rac1 {[%clk 0:01:15]}  h6 {[%clk 0:01:53]} 29. h3 {[%clk 0:01:12]}  Rab7 {[%clk 0:01:49]} 30. Re1 {[%clk 0:00:52]}  Rxb5 {[%clk 0:01:44]} 31. axb5 {[%clk 0:00:51]}  Nd3 {[%clk 0:01:44]} 32. Rc4 {[%clk 0:00:26]}  Nxe1 {[%clk 0:01:44]} 33. Bxe1 {[%clk 0:00:26]}  Rxb5 {[%clk 0:01:44]} 34. b3 {[%clk 0:00:27]}  Ra5 {[%clk 0:01:39]} 35. Bxb4 {[%clk 0:00:25]}  Ra1+ {[%clk 0:01:39]} 36. Kh2 {[%clk 0:00:25]}  Rb1 {[%clk 0:01:40]} 37. Bd2 {[%clk 0:00:22]}  Rxb3 {[%clk 0:01:40]} 38. Rc2 {[%clk 0:00:22]}  Rd3 {[%clk 0:01:39]} 39. g3 {[%clk 0:00:19]}  Rb3 {[%clk 0:01:39]} 40. h4 {[%clk 0:00:19]}  h5 {[%clk 0:01:36]} 41. Kg2 {[%clk 0:00:19]}  Kh7 {[%clk 0:01:37]} 42. Ra2 {[%clk 0:00:18]}  Kg6 {[%clk 0:01:37]} 43. Kf1 {[%clk 0:00:16]}  Nf6 {[%clk 0:01:34]} 44. Kg2 {[%clk 0:00:15]}  Ng4 {[%clk 0:01:32]} 45. Ra5 {[%clk 0:00:11]}  Rb2 {[%clk 0:01:28]} 46. Be1 {[%clk 0:00:10]}  f6 {[%clk 0:01:27]} 47. Kf1 {[%clk 0:00:10]}  e5 {[%clk 0:01:27]} 48. Ra7 {[%clk 0:00:10]}  e4 {[%clk 0:01:26]} 49. Re7 {[%clk 0:00:09]}  e3 {[%clk 0:01:14]} 50. fxe3 {[%clk 0:00:06]}  Nh2+ {[%clk 0:01:14]} 51. Kg1 {[%clk 0:00:06]}  Nf3+ {[%clk 0:01:15]} 52. Kf1 {[%clk 0:00:07]}  Rb1 {[%clk 0:01:15]} 0-1


[Site "https://www.chess.com"]

[Event "Titled Tuesday Blitz January 03 Early 2023"]
[White "Atakhan, Abtin"]
[Black "Baskakov, Egor"]
[WhiteFideId "22502203"]
[BlackFideId "24197866"]
[WhiteElo "2422"]
[BlackElo "2215"]
[Result "1-0"]
[Round "02"]
[TimeControl "180+2"]
[Date "2023.01.03"]
[WhiteClock "0:00:11"]
[BlackClock "0:00:08"]

1. Nf3 {[%clk 0:03:00]}  Nf6 {[%clk 0:02:59]} 2. c4 {[%clk 0:03:01]}  e6 {[%clk 0:03:00]} 3. Nc3 {[%clk 0:03:02]}  d5 {[%clk 0:03:00]} 4. d4 {[%clk 0:03:02]}  Ne4 {[%clk 0:03:00]} 5. Bf4 {[%clk 0:02:58]}  Bd6 {[%clk 0:02:56]} 6. Bxd6 {[%clk 0:02:55]}  Qxd6 {[%clk 0:02:57]} 7. e3 {[%clk 0:02:55]}  f5 {[%clk 0:02:55]} 8. Ne5 {[%clk 0:02:34]}  O-O {[%clk 0:02:54]} 9. Bd3 {[%clk 0:02:29]}  c6 {[%clk 0:02:52]} 10. O-O {[%clk 0:02:24]}  Nd7 {[%clk 0:02:51]} 11. Bxe4 {[%clk 0:02:18]}  fxe4 {[%clk 0:02:42]} 12. f4 {[%clk 0:02:14]}  exf3 {[%clk 0:02:41]} 13. Nxf3 {[%clk 0:02:12]}  dxc4 {[%clk 0:02:41]} 14. Qe2 {[%clk 0:02:06]}  b5 {[%clk 0:02:39]} 15. e4 {[%clk 0:02:05]}  e5 {[%clk 0:02:38]} 16. Rad1 {[%clk 0:01:51]}  exd4 {[%clk 0:02:32]} 17. Nxd4 {[%clk 0:01:52]}  Rxf1+ {[%clk 0:02:07]} 18. Qxf1 {[%clk 0:01:53]}  Qc5 {[%clk 0:02:06]} 19. Kh1 {[%clk 0:01:53]}  Ne5 {[%clk 0:02:05]} 20. Qf4 {[%clk 0:01:41]}  Nd3 {[%clk 0:01:55]} 21. Qe3 {[%clk 0:01:28]}  Bg4 {[%clk 0:01:54]} 22. Rf1 {[%clk 0:01:26]}  Rd8 {[%clk 0:01:47]} 23. Nc2 {[%clk 0:01:18]}  Qxe3 {[%clk 0:01:44]} 24. Nxe3 {[%clk 0:01:18]}  Be6 {[%clk 0:01:44]} 25. Rb1 {[%clk 0:01:10]}  a6 {[%clk 0:01:38]} 26. Kg1 {[%clk 0:01:09]}  Rd4 {[%clk 0:01:31]} 27. Nc2 {[%clk 0:00:53]}  Rd8 {[%clk 0:01:30]} 28. b3 {[%clk 0:00:50]}  b4 {[%clk 0:01:20]} 29. Ne2 {[%clk 0:00:50]}  c5 {[%clk 0:01:12]} 30. Ne3 {[%clk 0:00:44]}  Ne5 {[%clk 0:01:09]} 31. Nf4 {[%clk 0:00:41]}  Bf7 {[%clk 0:01:01]} 32. Nfd5 {[%clk 0:00:41]}  c3 {[%clk 0:00:58]} 33. Rf1 {[%clk 0:00:37]}  a5 {[%clk 0:00:33]} 34. Kf2 {[%clk 0:00:32]}  a4 {[%clk 0:00:31]} 35. Ke2 {[%clk 0:00:32]}  axb3 {[%clk 0:00:28]} 36. axb3 {[%clk 0:00:33]}  Ra8 {[%clk 0:00:28]} 37. Nf5 {[%clk 0:00:24]}  c4 {[%clk 0:00:17]} 38. bxc4 {[%clk 0:00:15]}  Nxc4 {[%clk 0:00:18]} 39. Nfe7+ {[%clk 0:00:15]}  Kf8 {[%clk 0:00:18]} 40. Nc6 {[%clk 0:00:14]}  Ra2+ {[%clk 0:00:18]} 41. Kd3 {[%clk 0:00:14]}  Nd2 {[%clk 0:00:16]} 42. Rf4 {[%clk 0:00:13]}  c2 {[%clk 0:00:13]} 43. Kxd2 {[%clk 0:00:13]}  b3 {[%clk 0:00:09]} 44. Nd4 {[%clk 0:00:11]}  Ra1 {[%clk 0:00:08]} 45. Nxb3 {[%clk 0:00:12]}  Rd1+ {[%clk 0:00:06]} 46. Kxc2 {[%clk 0:00:12]}  Rg1 {[%clk 0:00:06]} 47. Rf2 {[%clk 0:00:11]}  Ke8 {[%clk 0:00:07]} 48. Nd4 {[%clk 0:00:11]}  Bg6 {[%clk 0:00:07]} 49. Nc3 {[%clk 0:00:11]}  Kd7 {[%clk 0:00:07]} 50. Nf3 {[%clk 0:00:11]}  Kd6 {[%clk 0:00:08]} 51. Nxg1 {[%clk 0:00:11]} 1-0


[Site "https://www.chess.com"]

[Event "Titled Tuesday Blitz January 03 Early 2023"]
[White "Jakubowski, Krzysztof"]
[Black "Xu, Yi"]
[WhiteFideId "1112848"]
[BlackFideId "8605564"]
[WhiteElo "2486"]
[BlackElo "2527"]
[Result "0-1"]
[Round "02"]
[TimeControl "180+2"]
[Date "2023.01.03"]
[WhiteClock "0:00:20"]
[BlackClock "0:00:27"]

1. e4 {[%clk 0:03:00]}  c5 {[%clk 0:03:00]} 2. Nf3 {[%clk 0:03:00]}  d6 {[%clk 0:03:00]} 3. d4 {[%clk 0:03:00]}  cxd4 {[%clk 0:03:00]} 4. Nxd4 {[%clk 0:03:01]}  Nf6 {[%clk 0:03:00]} 5. Nc3 {[%clk 0:03:01]}  a6 {[%clk 0:03:00]} 6. Be3 {[%clk 0:03:01]}  e5 {[%clk 0:02:59]} 7. Nb3 {[%clk 0:03:01]}  Be6 {[%clk 0:02:57]} 8. h3 {[%clk 0:03:00]}  Be7 {[%clk 0:02:47]} 9. Qf3 {[%clk 0:02:53]}  Nbd7 {[%clk 0:02:42]} 10. g4 {[%clk 0:02:30]}  h6 {[%clk 0:02:33]} 11. O-O-O {[%clk 0:02:28]}  Nf8 {[%clk 0:02:27]} 12. g5 {[%clk 0:02:13]}  hxg5 {[%clk 0:02:25]} 13. Bxg5 {[%clk 0:02:14]}  Rc8 {[%clk 0:02:17]} 14. Rg1 {[%clk 0:02:03]}  Ng6 {[%clk 0:02:15]} 15. Kb1 {[%clk 0:02:01]}  b5 {[%clk 0:02:04]} 16. Bxf6 {[%clk 0:01:34]}  Bxf6 {[%clk 0:02:03]} 17. Nd5 {[%clk 0:01:30]}  Bxd5 {[%clk 0:02:00]} 18. Rxd5 {[%clk 0:01:30]}  Nf4 {[%clk 0:02:00]} 19. Rd1 {[%clk 0:01:27]}  g6 {[%clk 0:01:53]} 20. a3 {[%clk 0:01:23]}  Kf8 {[%clk 0:01:52]} 21. Nc1 {[%clk 0:01:23]}  Kg7 {[%clk 0:01:50]} 22. Na2 {[%clk 0:01:23]}  Qc7 {[%clk 0:01:32]} 23. Nc3 {[%clk 0:01:20]}  Qc5 {[%clk 0:01:31]} 24. Rd2 {[%clk 0:01:16]}  b4 {[%clk 0:01:30]} 25. axb4 {[%clk 0:01:11]}  Qxb4 {[%clk 0:01:30]} 26. Qe3 {[%clk 0:01:08]}  Rb8 {[%clk 0:01:16]} 27. b3 {[%clk 0:01:06]}  a5 {[%clk 0:01:16]} 28. Ka2 {[%clk 0:01:05]}  Rhc8 {[%clk 0:01:14]} 29. Rg3 {[%clk 0:01:03]}  d5 {[%clk 0:01:07]} 30. exd5 {[%clk 0:01:00]}  a4 {[%clk 0:00:50]} 31. Nxa4 {[%clk 0:00:59]}  Ra8 {[%clk 0:00:40]} 32. d6 {[%clk 0:00:51]}  Rxa4+ {[%clk 0:00:33]} 33. bxa4 {[%clk 0:00:51]}  Ra8 {[%clk 0:00:33]} 34. Rd3 {[%clk 0:00:20]}  Nxd3 {[%clk 0:00:27]} 0-1


[Site "https://www.chess.com"]

[Event "Titled Tuesday Blitz January 03 Early 2023"]
[White "Jones, Gawain C B"]
[Black "Papp, Levente"]
[WhiteFideId "409561"]
[BlackFideId "751243"]
[WhiteElo "2618"]
[BlackElo "2353"]
[Result "1/2-1/2"]
[Round "02"]
[TimeControl "180+2"]
[Date "2023.01.03"]
[WhiteClock "0:00:05"]
[BlackClock "0:00:07"]

1. Nf3 {[%clk 0:02:58]}  Nf6 {[%clk 0:02:58]} 2. g3 {[%clk 0:02:58]}  d5 {[%clk 0:02:53]} 3. Bg2 {[%clk 0:02:58]}  c6 {[%clk 0:02:52]} 4. O-O {[%clk 0:02:58]}  Bg4 {[%clk 0:02:49]} 5. h3 {[%clk 0:02:58]}  Bh5 {[%clk 0:02:49]} 6. c4 {[%clk 0:02:58]}  e6 {[%clk 0:02:48]} 7. Qb3 {[%clk 0:02:57]}  Qb6 {[%clk 0:02:48]} 8. d3 {[%clk 0:02:56]}  Nbd7 {[%clk 0:02:46]} 9. Be3 {[%clk 0:02:56]}  Qxb3 {[%clk 0:02:38]} 10. axb3 {[%clk 0:02:57]}  a6 {[%clk 0:02:22]} 11. Bd2 {[%clk 0:02:51]}  Nc5 {[%clk 0:02:16]} 12. Ra3 {[%clk 0:02:51]}  Ncd7 {[%clk 0:02:09]} 13. b4 {[%clk 0:02:50]}  Be7 {[%clk 0:01:59]} 14. Bc3 {[%clk 0:02:48]}  Bxf3 {[%clk 0:01:53]} 15. Bxf3 {[%clk 0:02:48]}  e5 {[%clk 0:01:54]} 16. c5 {[%clk 0:02:41]}  O-O {[%clk 0:01:47]} 17. e4 {[%clk 0:02:41]}  a5 {[%clk 0:01:43]} 18. Rxa5 {[%clk 0:02:38]}  Rxa5 {[%clk 0:01:42]} 19. bxa5 {[%clk 0:02:39]}  Nxc5 {[%clk 0:01:32]} 20. exd5 {[%clk 0:02:34]}  Nxd5 {[%clk 0:01:29]} 21. Bxe5 {[%clk 0:02:34]}  Nxd3 {[%clk 0:01:29]} 22. Bd4 {[%clk 0:02:33]}  Ra8 {[%clk 0:01:25]} 23. Bxd5 {[%clk 0:02:20]}  cxd5 {[%clk 0:01:25]} 24. Bb6 {[%clk 0:02:20]}  Nxb2 {[%clk 0:01:18]} 25. Nc3 {[%clk 0:02:17]}  d4 {[%clk 0:00:45]} 26. Nd5 {[%clk 0:01:58]}  Bf6 {[%clk 0:00:43]} 27. Nxf6+ {[%clk 0:01:47]}  gxf6 {[%clk 0:00:44]} 28. Bxd4 {[%clk 0:01:47]}  Nc4 {[%clk 0:00:43]} 29. Bxf6 {[%clk 0:01:40]}  Rxa5 {[%clk 0:00:42]} 30. Rd1 {[%clk 0:01:37]}  h5 {[%clk 0:00:37]} 31. Rd7 {[%clk 0:01:16]}  Rf5 {[%clk 0:00:33]} 32. Bc3 {[%clk 0:01:10]}  b5 {[%clk 0:00:31]} 33. Rd8+ {[%clk 0:00:53]}  Kh7 {[%clk 0:00:31]} 34. Rh8+ {[%clk 0:00:53]}  Kg6 {[%clk 0:00:31]} 35. Rg8+ {[%clk 0:00:54]}  Kh7 {[%clk 0:00:17]} 36. Rh8+ {[%clk 0:00:48]}  Kg6 {[%clk 0:00:17]} 37. f4 {[%clk 0:00:44]}  f6 {[%clk 0:00:15]} 38. Rd8 {[%clk 0:00:36]}  Ne3 {[%clk 0:00:12]} 39. Kf2 {[%clk 0:00:32]}  Rd5 {[%clk 0:00:13]} 40. Rg8+ {[%clk 0:00:14]}  Kf7 {[%clk 0:00:13]} 41. Rc8 {[%clk 0:00:15]}  Nd1+ {[%clk 0:00:13]} 42. Ke2 {[%clk 0:00:14]}  Nxc3+ {[%clk 0:00:13]} 43. Rxc3 {[%clk 0:00:15]}  Ke6 {[%clk 0:00:13]} 44. Kf3 {[%clk 0:00:12]}  b4 {[%clk 0:00:11]} 45. Rc6+ {[%clk 0:00:11]}  Kf7 {[%clk 0:00:09]} 46. Rb6 {[%clk 0:00:11]}  Rd4 {[%clk 0:00:08]} 47. g4 {[%clk 0:00:08]}  hxg4+ {[%clk 0:00:09]} 48. Kxg4 {[%clk 0:00:08]}  Kg6 {[%clk 0:00:07]} 49. h4 {[%clk 0:00:08]}  Rc4 {[%clk 0:00:07]} 50. h5+ {[%clk 0:00:08]}  Kg7 {[%clk 0:00:07]} 51. Rb7+ {[%clk 0:00:08]}  Kh6 {[%clk 0:00:08]} 52. Rb6 {[%clk 0:00:08]}  Kg7 {[%clk 0:00:08]} 53. Rb8 {[%clk 0:00:08]}  Rd4 {[%clk 0:00:07]} 54. Kf5 {[%clk 0:00:04]}  Rd5+ {[%clk 0:00:07]} 55. Kg4 {[%clk 0:00:05]}  Rd4 {[%clk 0:00:07]} 56. Rb6 {[%clk 0:00:05]}  Rc4 {[%clk 0:00:07]} 1/2-1/2


[Site "https://www.chess.com"]

[Event "Titled Tuesday Blitz January 03 Early 2023"]
[White "Ashraf, Artin"]
[Black "Tang, Andrew"]
[WhiteFideId "22514805"]
[BlackFideId "2059630"]
[WhiteElo "2314"]
[BlackElo "2523"]
[Result "0-1"]
[Round "02"]
[TimeControl "180+2"]
[Date "2023.01.03"]
[WhiteClock "0:00:03"]
[BlackClock "0:00:04"]

1. c4 {[%clk 0:02:59]}  e6 {[%clk 0:02:58]} 2. Nf3 {[%clk 0:02:54]}  d5 {[%clk 0:02:57]} 3. e3 {[%clk 0:02:53]}  Nf6 {[%clk 0:02:58]} 4. d4 {[%clk 0:02:53]}  b6 {[%clk 0:02:58]} 5. b3 {[%clk 0:02:52]}  Bb7 {[%clk 0:02:58]} 6. Bb2 {[%clk 0:02:52]}  Bd6 {[%clk 0:02:58]} 7. Nc3 {[%clk 0:02:49]}  Nbd7 {[%clk 0:02:57]} 8. Bd3 {[%clk 0:02:47]}  Ne4 {[%clk 0:02:57]} 9. O-O {[%clk 0:02:44]}  f5 {[%clk 0:02:51]} 10. Nb5 {[%clk 0:02:32]}  Be7 {[%clk 0:02:47]} 11. cxd5 {[%clk 0:02:25]}  exd5 {[%clk 0:02:45]} 12. Ne5 {[%clk 0:02:23]}  O-O {[%clk 0:02:15]} 13. Rc1 {[%clk 0:02:15]}  Nxe5 {[%clk 0:02:08]} 14. dxe5 {[%clk 0:02:13]}  c5 {[%clk 0:02:08]} 15. f3 {[%clk 0:01:26]}  Ng5 {[%clk 0:02:00]} 16. Qc2 {[%clk 0:01:24]}  g6 {[%clk 0:01:21]} 17. Nd6 {[%clk 0:01:20]}  Bc6 {[%clk 0:01:06]} 18. Rfd1 {[%clk 0:00:57]}  Qd7 {[%clk 0:00:47]} 19. a4 {[%clk 0:00:39]}  Rad8 {[%clk 0:00:31]} 20. Bb5 {[%clk 0:00:29]}  Bxb5 {[%clk 0:00:29]} 21. axb5 {[%clk 0:00:28]}  Qe6 {[%clk 0:00:28]} 22. Qd3 {[%clk 0:00:22]}  Nf7 {[%clk 0:00:11]} 23. Qxd5 {[%clk 0:00:19]}  Qxd5 {[%clk 0:00:11]} 24. Rxd5 {[%clk 0:00:20]}  Bxd6 {[%clk 0:00:10]} 25. exd6 {[%clk 0:00:19]}  Rxd6 {[%clk 0:00:09]} 26. e4 {[%clk 0:00:14]}  Rxd5 {[%clk 0:00:09]} 27. exd5 {[%clk 0:00:13]}  Nd6 {[%clk 0:00:05]} 28. Re1 {[%clk 0:00:14]}  Re8 {[%clk 0:00:04]} 29. Rxe8+ {[%clk 0:00:12]}  Nxe8 {[%clk 0:00:04]} 30. Be5 {[%clk 0:00:12]}  Kf7 {[%clk 0:00:04]} 31. Bb8 {[%clk 0:00:08]}  Nf6 {[%clk 0:00:05]} 32. d6 {[%clk 0:00:07]}  Nd7 {[%clk 0:00:03]} 33. Bxa7 {[%clk 0:00:07]}  Ke6 {[%clk 0:00:04]} 34. g4 {[%clk 0:00:05]}  Kxd6 {[%clk 0:00:04]} 35. gxf5 {[%clk 0:00:05]}  gxf5 {[%clk 0:00:05]} 36. Kf2 {[%clk 0:00:06]}  f4 {[%clk 0:00:04]} 37. Kg2 {[%clk 0:00:06]}  Kc7 {[%clk 0:00:05]} 38. Kh3 {[%clk 0:00:06]}  Ne5 {[%clk 0:00:06]} 39. Kg2 {[%clk 0:00:03]}  Kb7 {[%clk 0:00:04]} 0-1


[Site "https://www.chess.com"]